bitfinex/quotes_SOLUSD_20240829
["timestamp","ask_amount","ask_price","bid_price","bid_amount"]
[1724962167880,13.5611,141.58,141.54,7.0651]
[1724962171068,7.0642,141.56,141.53,17.6635]
[1724962172160,7.0642,141.56,141.51,7.0664]
[1724962172365,7.0647,141.55,141.51,7.0664]
[1724962174865,6.4977,141.58,141.43,10.25813863]
[1724962174866,33.64130555,141.52,141.43,10.25813863]
[1724962175165,33.64130555,141.52,141.47,3.27209209]
[1724962175166,33.64130555,141.5,141.47,3.27209209]
[1724962175372,33.64130555,141.5,141.46,7.0687]
[1724962176364,40.70840555,141.5,141.46,7.0687]
[1724962176880,40.70840555,141.5,141.44,17.6747]
[1724962177070,40.70840555,141.5,141.45,7.0694]
[1724962177264,7.0677,141.49,141.45,7.0694]
[1724962178886,48.69930555,141.48,141.41,17.6783]
[1724962179065,7.0692,141.46,141.41,24.7498]
[1724962179266,7.0697,141.45,141.41,17.6783]
[1724962179679,7.0701,141.44,141.41,17.6783]
[1724962179883,7.0701,141.44,141.39,7.0725]
[1724962180092,6.2278,141.45,141.39,7.0725]
[1724962180093,7.0707,141.43,141.39,7.0725]
[1724962180379,7.0713,141.42,141.38,17.6821]
[1724962181990,40.71260555,141.42,141.38,17.6821]
[1724962182363,7.0726,141.39,141.35,17.6864]
[1724962182567,33.64130555,141.4,141.35,17.6864]
[1724962182882,40.71380555,141.4,141.35,24.7609]
[1724962183095,7.0726,141.39,141.35,24.7609]
[1724962183390,33.64130555,141.42,141.35,17.6864]
[1724962184287,7.0716,141.41,141.36,7.074]
[1724962185187,7.0716,141.41,141.35,17.6864]
[1724962186274,7.0716,141.41,141.36,7.074]
[1724962187284,7.0722,141.4,141.35,24.7609]
[1724962187573,40.71350555,141.4,141.35,24.7609]
[1724962188589,7.0722,141.4,141.36,7.0741]
[1724962188889,33.64130555,141.38,141.32,17.6898]
[1724962189092,7.074,141.37,141.32,17.6898]
[1724962189987,7.074,141.37,141.32,24.7658]
[1724962190581,7.0743,141.36,141.32,17.6898]
[1724962191394,7.0737,141.37,141.33,7.0756]
[1724962191595,7.0737,141.37,141.32,24.7658]
[1724962194378,7.0741,141.36,141.32,24.7658]
[1724962195191,7.0741,141.36,141.32,17.6898]
[1724962196007,13.49284121,141.35,141.32,17.6898]
[1724962196794,13.49284121,141.33,141.3,7.077]
[1724962197296,13.49284121,141.33,141.31,7.0765]
[1724962197595,13.49284121,141.35,141.32,7.0761]
[1724962197795,13.49284121,141.35,141.29,53.0808]
[1724962198192,20.56744121,141.35,141.31,7.0765]
[1724962199405,13.49284121,141.33,141.29,24.7704]
[1724962199892,13.49284121,141.31,141.27,22.2583]
[1724962200500,13.49284121,141.31,141.27,7.0785]
[1724962200804,7.0775,141.3,141.26,17.697]
[1724962201591,20.56954121,141.31,141.27,7.0785]
[1724962201795,7.0767,141.31,141.27,7.0785]
[1724962202700,7.0788,141.27,141.22,24.7831]
[1724962202910,66.56,141.3,141.22,24.7831]
[1724962202911,66.56,141.3,141.22,17.7025]
[1724962203114,7.078,141.29,141.24,7.08]
[1724962203296,21.56,141.3,141.22,17.7025]
[1724962203803,7.078,141.29,141.24,7.08]
[1724962203979,7.0782,141.28,141.24,7.08]
[1724962204995,7.0772,141.3,141.26,7.079]
[1724962205190,7.0772,141.3,141.24,17.6996]
[1724962205884,7.0772,141.3,141.25,7.0792]
[1724962207402,7.0777,141.29,141.25,7.0792]
[1724962207605,7.0781,141.28,141.24,24.7796]
[1724962209589,7.0788,141.27,141.23,7.0804]
[1724962209793,7.0807,141.23,141.18,23.85704668]
[1724962210003,7.0806,141.24,141.19,7.0822]
[1724962210601,7.0806,141.24,141.18,34.1964]
[1724962210602,33.74872538,141.26,141.18,24.7904]
[1724962210910,33.74872538,141.24,141.18,17.7073]
[1724962211091,7.0812,141.22,141.18,24.7903]
[1724962211590,7.0812,141.22,141.18,17.7073]
[1724962211798,7.0812,141.22,141.18,24.7903]
[1724962212202,7.0807,141.23,141.18,24.7903]
[1724962213712,45.0,141.22,141.17,7.0835]
[1724962213912,78.74872538,141.22,141.14,16.3504]
[1724962214120,78.74872538,141.22,141.15,7.37135781]
[1724962214121,7.083,141.19,141.15,7.37135781]
[1724962214291,60.098,141.22,141.12,17.7147]
[1724962214292,33.74872538,141.18,141.12,17.7147]
[1724962214490,6.3465,141.21,141.12,17.7147]
[1724962214793,45.0,141.2,141.12,17.7147]
[1724962214987,7.0819,141.21,141.14,17.712]
[1724962215184,7.0819,141.21,141.16,7.084]
[1724962216262,15.098,141.22,141.15,7.0845]
[1724962216263,7.0822,141.2,141.15,7.0845]
[1724962216394,15.098,141.22,141.14,17.712]
[1724962216597,15.61,141.26,141.16,33.74872538]
[1724962216905,7.0803,141.24,141.18,24.7898]
[1724962217101,15.61,141.26,141.18,17.7068]
[1724962217301,15.61,141.26,141.16,6.2357]
[1724962217504,7.0807,141.23,141.17,7.0832]
[1724962217702,7.0807,141.23,141.18,7.0829]
[1724962218998,7.0802,141.24,141.19,7.0826]
[1724962219509,15.61,141.26,141.16,23.9452]
[1724962219510,15.61,141.26,141.18,17.7069]
[1724962219723,52.08,141.25,141.2,7.0821]
[1724962220012,7.0801,141.24,141.19,7.0825]
[1724962220411,52.0808,141.23,141.18,24.7899]
[1724962220612,7.0808,141.23,141.18,24.7899]
[1724962222519,7.0812,141.22,141.18,24.7899]
[1724962225693,7.0807,141.23,141.18,24.7899]
[1724962225894,7.0807,141.23,141.19,7.0825]
[1724962226295,7.0797,141.25,141.2,7.0817]
[1724962228620,22.3543,141.3,141.21,1.41628522]
[1724962228819,22.3543,141.3,141.17,51.5704]
[1724962229021,7.0776,141.29,141.24,7.0799]
[1724962229225,7.0782,141.28,141.24,7.0799]
[1724962229399,7.0794,141.26,141.22,24.783]
[1724962229607,7.079,141.27,141.22,24.783]
[1724962229804,33.74872538,141.28,141.22,17.7021]
[1724962230000,7.0797,141.25,141.21,7.0815]
[1724962230318,33.74872538,141.26,141.19,17.706]
[1724962230519,33.74872538,141.24,141.19,17.706]
[1724962230727,45.0,141.23,141.19,17.706]
[1724962231019,7.0814,141.22,141.17,23.2377]
[1724962231626,7.0814,141.22,141.18,7.083]
[1724962232199,7.0814,141.22,141.17,7.0835]
[1724962232423,33.74872538,141.2,141.16,17.7099]
[1724962232621,40.83122538,141.2,141.16,17.7099]
[1724962232931,7.0826,141.19,141.16,17.7099]
[1724962233302,40.83082538,141.2,141.16,17.7099]
[1724962233631,7.0821,141.2,141.16,24.7939]
[1724962234805,33.74872538,141.18,141.13,17.7138]
[1724962235216,7.0837,141.17,141.13,17.7138]
[1724962235729,7.0837,141.17,141.13,24.7993]
[1724962235908,22.2333,141.19,141.14,7.0848]
[1724962236516,7.0831,141.19,141.14,7.0848]
[1724962236818,33.74872538,141.22,141.1,35.4353]
[1724962237021,7.0838,141.17,141.12,24.8014]
[1724962238120,7.0843,141.16,141.12,17.7153]
[1724962239929,7.0843,141.16,141.12,24.8013]
[1724962241513,7.0847,141.15,141.11,7.0865]
[1724962245829,7.0852,141.14,141.1,7.087]
[1724962247342,7.0887,141.07,141.03,7.0903]
[1724962247508,7.0885,141.08,141.03,7.0901]
[1724962247710,7.0877,141.09,141.04,7.0899]
[1724962247911,7.0872,141.1,141.05,7.0892]
[1724962248111,23.2331,141.11,141.05,7.0892]
[1724962248323,23.2331,141.11,141.06,7.0891]
[1724962248533,16.1464,141.11,141.07,7.0885]
[1724962248728,15.8659,141.16,141.06,42.2751247]
[1724962249031,15.8659,141.16,141.08,17.7196]
[1724962249714,7.085,141.15,141.1,7.087]
[1724962250112,7.085,141.15,141.11,7.0865]
[1724962250323,6.0025,141.17,141.08,15.2353]
[1724962250508,15.8659,141.19,141.08,57.5104247]
[1724962250711,15.8659,141.19,141.12,17.7147]
[1724962251418,7.0832,141.18,141.13,7.0852]
[1724962252335,22.9485,141.19,141.12,17.7147]
[1724962252553,15.8659,141.19,141.15,24.7961]
[1724962252725,22.9487,141.19,141.15,17.7116]
[1724962253842,22.4944,141.23,141.18,7.0831]
[1724962254139,22.4944,141.23,141.19,7.0825]
[1724962254140,15.4138,141.23,141.19,7.0825]
[1724962254633,6.0202,141.25,141.21,7.0815]
[1724962255242,7.0792,141.26,141.21,7.0815]
[1724962255545,22.4925,141.27,141.22,7.081]
[1724962257129,22.4925,141.27,141.21,7.0815]
[1724962257535,7.0793,141.26,141.21,7.0815]
[1724962258930,15.4138,141.27,141.22,7.081]
[1724962258931,22.4924,141.27,141.22,7.081]
[1724962259119,6.0202,141.28,141.23,7.0804]
[1724962259726,33.1055,141.31,141.25,7.0795]
[1724962259727,15.4138,141.31,141.25,7.0795]
[1724962260338,7.0775,141.3,141.25,7.0795]
[1724962261333,22.4905,141.31,141.26,7.0791]
[1724962261537,7.0772,141.3,141.26,7.0791]
[1724962261932,7.0772,141.3,141.25,7.0794]
[1724962262119,15.4138,141.31,141.25,7.0794]
[1724962262319,7.0777,141.29,141.24,7.08]
[1724962262521,15.4138,141.31,141.23,24.7812]
[1724962262732,87.2751247,141.3,141.23,24.7812]
[1724962262947,7.0782,141.28,141.23,24.7812]
[1724962263843,7.0787,141.27,141.23,17.7007]
[1724962264433,7.0787,141.27,141.23,24.7812]
[1724962265437,7.0787,141.27,141.23,17.7007]
[1724962265627,7.0792,141.26,141.21,7.0816]
[1724962266143,7.0792,141.26,141.22,7.081]
[1724962266936,7.0787,141.27,141.23,7.0805]
[1724962268768,7.0787,141.27,141.22,7.081]
[1724962269255,7.0791,141.26,141.22,7.081]
[1724962270740,7.0796,141.25,141.21,7.0814]
[1724962270940,104.9687247,141.3,141.17,17.7085]
[1724962270941,7.0809,141.23,141.17,17.7085]
[1724962271538,7.0803,141.24,141.19,7.0825]
[1724962272233,7.0806,141.23,141.19,7.0825]
[1724962272430,7.0806,141.23,141.18,7.083]
[1724962272638,7.0822,141.2,141.17,17.7085]
[1724962273043,7.0818,141.21,141.16,7.0841]
[1724962274459,7.0813,141.22,141.17,7.0833]
[1724962274835,59.9760247,141.24,141.17,7.0833]
[1724962275035,7.0811,141.22,141.18,7.083]
[1724962275455,15.3545,141.25,141.18,7.083]
[1724962275456,7.081,141.23,141.19,7.0825]
[1724962275659,15.3545,141.25,141.2,17.705]
[1724962275959,15.3545,141.25,141.21,7.0813]
[1724962276133,15.3545,141.25,141.17,16.2145]
[1724962276339,7.0805,141.24,141.2,7.0821]
[1724962276555,7.0805,141.24,141.17,33.9228]
[1724962276861,22.4343,141.25,141.21,7.0816]
[1724962277359,13.3127,141.26,141.22,7.081]
[1724962277659,7.0792,141.26,141.22,7.081]
[1724962279764,7.0787,141.27,141.23,7.0805]
[1724962279939,16.4292,141.28,141.24,7.0801]
[1724962279940,23.5073,141.28,141.24,7.0801]
[1724962281166,23.5073,141.28,141.23,7.0805]
[1724962281354,15.3124,141.32,141.23,17.7009]
[1724962281552,7.0773,141.3,141.25,7.0792]
[1724962281754,7.0776,141.29,141.25,7.0792]
[1724962282765,7.0776,141.29,141.24,7.0797]
[1724962283066,7.0782,141.28,141.24,7.0797]
[1724962283567,7.0789,141.27,141.23,17.7009]
[1724962283801,107.5875247,141.32,141.21,7.0815]
[1724962283802,92.2751247,141.3,141.21,7.0815]
[1724962283942,92.2751247,141.3,141.12,42.2751247]
[1724962283943,42.2751247,141.26,141.14,16.4464]
[1724962284148,45.0,141.25,141.14,16.4464]
[1724962284557,7.0817,141.21,141.16,7.0836]
[1724962284967,7.0812,141.22,141.17,7.0835]
[1724962285147,7.0816,141.21,141.17,7.0835]
[1724962285469,7.0812,141.22,141.17,7.0835]
[1724962288285,7.0812,141.22,141.18,7.083]
[1724962288952,16.0432,141.23,141.2,7.082]
[1724962289652,52.0796,141.25,141.2,7.082]
[1724962289853,7.0796,141.25,141.21,7.0816]
[1724962290268,7.0792,141.26,141.21,7.0816]
[1724962291174,273.8084,141.3,141.22,17.7022]
[1724962291345,15.8084,141.3,141.22,17.7022]
[1724962292587,45.0,141.29,141.22,17.7022]
[1724962293050,7.0812,141.22,141.17,7.0832]
[1724962293249,7.0808,141.23,141.18,7.0829]
[1724962294352,7.0802,141.24,141.19,7.0825]
[1724962294571,7.0799,141.25,141.2,24.7868]
[1724962294873,45.0,141.24,141.2,24.7868]
[1724962295093,7.0799,141.25,141.2,24.7868]
[1724962295879,7.0799,141.25,141.21,7.0814]
[1724962296082,7.079,141.27,141.22,7.0809]
[1724962297583,7.079,141.27,141.22,7.0809]
[1724962297758,7.0791,141.26,141.22,7.0809]
[1724962300466,7.0787,141.27,141.23,7.0806]
[1724962301663,42.2751247,141.29,141.22,7.081]
[1724962301664,7.0791,141.26,141.22,7.081]
[1724962302454,7.0791,141.26,141.21,7.0814]
[1724962303783,7.0796,141.25,141.21,7.0814]
[1724962306187,7.0805,141.24,141.2,24.7869]
[1724962306867,33.76948657,141.26,141.18,5.62719454]
[1724962307089,7.0816,141.21,141.18,5.62719454]
[1724962307884,33.76948657,141.24,141.18,12.71019454]
[1724962307885,7.0813,141.22,141.18,12.71019454]
[1724962308080,7.0808,141.23,141.19,7.0825]
[1724962308282,7.0803,141.24,141.2,7.082]
[1724962308485,7.0798,141.25,141.2,8.49822101]
[1724962308988,7.0798,141.25,141.21,7.0814]
[1724962309293,7.0793,141.26,141.21,7.0814]
[1724962311091,7.0796,141.25,141.21,7.0814]
[1724962312071,7.0802,141.24,141.2,7.0819]
[1724962313588,7.0797,141.25,141.21,7.0816]
[1724962314087,7.0785,141.28,141.23,7.0801]
[1724962314291,7.0778,141.29,141.24,7.0801]
[1724962319999,7.0778,141.29,141.25,7.0796]
[1724962323699,7.0762,141.32,141.28,7.078]
[1724962323892,15.6078,141.33,141.26,17.6968]
[1724962324077,45.0,141.32,141.27,1.41555527]
[1724962324809,7.0769,141.31,141.27,8.49405527]
[1724962325093,7.0769,141.31,141.27,1.41555527]
[1724962326002,7.0769,141.31,141.27,8.49405527]
[1724962326406,7.076,141.33,141.28,7.0781]
[1724962326704,7.0762,141.32,141.29,1.41534545]
[1724962327281,33.76948657,141.32,141.27,1.41535825]
[1724962327486,15.8471,141.31,141.22,16.074]
[1724962327702,15.8471,141.31,141.21,18.16358382]
[1724962327703,7.0796,141.26,141.23,3.28467245]
[1724962327902,33.76948657,141.26,141.2,3.28467245]
[1724962328600,40.84868657,141.26,141.2,7.0817]
[1724962329693,7.0792,141.26,141.21,7.0813]
[1724962330312,51.6305,141.3,141.22,17.7026]
[1724962330483,7.0782,141.28,141.23,7.0806]
[1724962330884,7.0786,141.27,141.22,24.7836]
[1724962332908,85.39998657,141.3,141.19,16.074]
[1724962333082,33.76948657,141.24,141.16,3.28811211]
[1724962333287,33.76948657,141.22,141.15,19.19827696]
[1724962333490,7.0822,141.2,141.15,43.99427696]
[1724962333808,7.0822,141.2,141.15,40.7027]
[1724962336995,7.0826,141.19,141.15,33.6181]
[1724962337514,7.0826,141.19,141.15,40.7027]
[1724962337714,7.0831,141.18,141.13,7.0853]
[1724962338010,42.25563364,141.2,141.13,7.0853]
[1724962339390,7.0837,141.17,141.13,7.0853]
[1724962339711,42.25563364,141.2,141.13,7.0853]
[1724962339712,7.0832,141.18,141.13,7.0853]
[1724962341108,7.0838,141.17,141.13,7.0853]
[1724962341416,7.0838,141.17,141.12,40.4803]
[1724962341893,7.0843,141.16,141.12,40.4803]
[1724962344203,7.0843,141.16,141.12,17.7149]
[1724962344590,7.0847,141.15,141.11,7.0865]
[1724962345109,16.1319,141.19,141.11,17.716]
[1724962345291,45.0,141.18,141.11,17.716]
[1724962345707,7.0839,141.17,141.12,7.086]
[1724962347088,7.0839,141.17,141.13,7.0855]
[1724962349129,17.7048,141.21,141.13,17.7133]
[1724962349317,7.083,141.19,141.14,7.0847]
[1724962349514,45.0,141.2,141.14,7.0847]
[1724962349515,7.0832,141.18,141.14,7.0847]
[1724962350643,22.6753,141.09,141.01,3.61750247]
[1724962350925,7.0911,141.03,140.96,7.0939]
[1724962351129,42.25563364,141.01,140.97,3.30320632]
[1724962351305,45.0,141.0,140.97,3.30320632]
[1724962351506,42.25563364,140.99,140.96,3.30320632]
[1724962351700,42.25563364,141.01,140.9,17.7421]
[1724962351924,42.25563364,141.03,140.93,17.7389]
[1724962352120,45.0,141.02,140.93,17.7389]
[1724962352828,7.0912,141.02,140.96,7.0942]
[1724962353135,7.0896,141.06,140.96,24.1002]
[1724962353323,7.0896,141.06,140.98,7.0931]
[1724962354115,7.0896,141.06,140.99,7.0922]
[1724962354431,7.0902,141.04,140.98,7.0931]
[1724962354923,7.0907,141.03,140.96,24.1002]
[1724962355125,42.25563364,141.03,140.96,24.1002]
[1724962355634,42.25563364,141.07,140.99,17.7316]
[1724962356334,49.34473364,141.07,141.01,7.0912]
[1724962357615,7.0891,141.06,141.01,7.0912]
[1724962358016,49.34543364,141.05,140.99,17.7316]
[1724962358414,7.0901,141.04,140.99,24.8242]
[1724962359839,49.34533364,141.05,141.0,7.0921]
[1724962360213,7.0902,141.04,140.99,24.8242]
[1724962360836,49.34643364,141.03,140.99,17.7316]
[1724962361634,7.0912,141.02,140.97,7.0936]
[1724962361829,42.25563364,141.03,140.96,39.2866]
[1724962362224,42.25563364,141.03,140.99,7.0926]
[1724962362419,42.25563364,141.05,140.99,7.0926]
[1724962362618,42.25563364,141.07,140.98,17.7317]
[1724962362820,45.0,141.06,140.98,17.7317]
[1724962363332,42.25563364,141.07,140.98,17.7317]
[1724962363839,22.6753,141.09,141.0,17.7294]
[1724962363840,42.25563364,141.09,141.0,17.7294]
[1724962364737,7.0885,141.08,141.03,7.0903]
[1724962364931,7.0885,141.08,141.04,7.09]
[1724962366545,7.0878,141.09,141.04,7.09]
[1724962367721,7.0882,141.08,141.04,7.09]
[1724962369139,7.089,141.07,141.02,24.8179]
[1724962369349,7.0889,141.07,141.03,7.0906]
[1724962372340,42.25563364,141.1,141.04,7.0901]
[1724962372548,7.0876,141.09,141.04,17.7249]
[1724962373436,7.0876,141.09,141.05,7.0896]
[1724962376255,7.0876,141.09,141.04,24.8149]
[1724962377248,52.0884,141.08,141.04,17.7249]
[1724962378134,7.0887,141.07,141.04,17.7249]
[1724962380432,33.86827447,141.11,141.04,17.7249]
[1724962380638,33.86827447,141.11,141.06,7.0888]
[1724962380824,40.95537447,141.11,141.06,7.0888]
[1724962381638,7.0873,141.1,141.06,7.0888]
[1724962382031,7.0873,141.1,141.04,17.7249]
[1724962382032,7.0877,141.09,141.04,24.8146]
[1724962382431,7.0877,141.09,141.05,7.0895]
[1724962383827,7.0873,141.1,141.05,7.0895]
[1724962384231,33.86827447,141.09,141.05,7.0895]
[1724962384752,33.86827447,141.09,141.04,24.8149]
[1724962385179,7.0885,141.08,141.04,17.7249]
[1724962385649,40.95727447,141.07,141.03,22.1961]
[1724962385840,40.95727447,141.07,141.03,29.2867]
[1724962386041,40.95727447,141.07,141.03,7.0906]
[1724962386653,7.0892,141.06,141.01,24.8202]
[1724962387156,33.86827447,141.05,141.0,23.4614]
[1724962387450,78.86827447,141.05,141.0,23.4614]
[1724962388341,7.0903,141.04,141.0,23.4614]
[1724962389945,7.0909,141.03,140.99,13.6559]
[1724962390141,7.0909,141.03,140.99,7.0926]
[1724962390849,7.0909,141.03,140.98,24.8251]
[1724962391433,40.96037447,141.01,140.96,29.184]
[1724962391637,7.0925,141.0,140.96,22.0903]
[1724962391838,52.0925,141.0,140.96,16.0363]
[1724962392362,7.0928,140.99,140.93,6.4348]
[1724962392730,7.0922,141.0,140.95,7.0946]
[1724962393345,22.7001,140.99,140.93,7.0953]
[1724962393568,33.86827447,140.95,140.89,17.7439]
[1724962393853,33.86827447,140.97,140.91,17.741]
[1724962394063,52.0932,140.98,140.92,7.0961]
[1724962394247,40.96207447,140.97,140.91,24.8376]
[1724962394553,7.0943,140.96,140.91,24.8376]
[1724962394765,40.96207447,140.97,140.91,24.8376]
[1724962396641,52.0932,140.98,140.92,7.096]
[1724962397244,7.0928,140.99,140.92,22.298]
[1724962397546,33.86827447,141.01,140.94,7.0951]
[1724962397547,7.0923,141.0,140.94,7.0951]
[1724962397958,7.0917,141.01,140.95,7.0944]
[1724962399479,7.0896,141.06,141.0,7.0917]
[1724962399652,7.0898,141.05,140.99,24.8234]
[1724962399848,7.0892,141.06,141.0,7.0921]
[1724962400549,40.95687447,141.07,141.01,7.0915]
[1724962400746,7.0877,141.09,141.03,7.0902]
[1724962401072,33.86827447,141.09,141.02,7.091]
[1724962401764,7.0882,141.08,141.02,7.091]
[1724962401965,7.0882,141.08,141.01,17.7281]
[1724962401966,7.0883,141.08,141.03,7.0906]
[1724962402742,33.86827447,141.09,141.04,7.0901]
[1724962403065,7.0878,141.09,141.04,7.0901]
[1724962403673,7.0878,141.09,141.03,24.8165]
[1724962404045,7.0901,141.05,140.98,6.0855]
[1724962404246,7.0902,141.04,140.99,17.7311]
[1724962404459,7.0892,141.06,140.99,17.7311]
[1724962404953,7.0898,141.05,141.0,7.0921]
[1724962405560,7.0892,141.06,141.0,7.0921]
[1724962410647,7.0901,141.05,140.99,24.8237]
[1724962410965,87.34776253,141.05,140.99,24.8237]
[1724962411174,7.0903,141.04,140.99,24.8237]
[1724962412151,7.0882,141.08,141.01,17.7287]
[1724962412353,7.0882,141.08,141.03,7.0906]
[1724962412572,7.0886,141.07,141.02,7.0911]
[1724962415375,7.0894,141.06,141.01,24.8203]
[1724962418078,42.34776253,141.03,140.98,6.0855]
[1724962418490,42.34776253,141.03,140.97,16.2125]
[1724962418977,7.0917,141.01,140.97,16.2125]
[1724962424098,49.43876253,141.03,140.98,7.0931]
[1724962424889,7.0912,141.02,140.97,23.3061]
[1724962425263,42.34776253,140.99,140.95,6.6116]
[1724962425462,42.34776253,140.99,140.93,15.7611]
[1724962425463,50.0,141.05,140.93,15.7611]
[1724962425657,7.0933,140.98,140.93,22.8564]
[1724962426271,7.0933,140.98,140.94,7.0951]
[1724962426678,7.0922,141.0,140.95,7.0944]
[1724962427379,51.63295453,141.03,140.94,17.7372]
[1724962427586,45.0,141.04,140.96,17.7346]
[1724962428393,33.90595453,141.05,140.98,7.0931]
[1724962428881,33.90595453,141.05,140.99,1.41834699]
[1724962429090,33.90595453,141.05,140.98,7.0931]
[1724962429395,7.0907,141.03,140.98,7.0931]
[1724962431483,7.0907,141.03,140.96,17.7346]
[1724962431484,7.0914,141.02,140.96,17.7346]
[1724962431791,7.0918,141.01,140.96,24.8287]
[1724962432288,33.90595453,141.01,140.93,15.7611]
[1724962432481,7.0927,140.99,140.94,7.0948]
[1724962432685,33.90595453,141.01,140.93,33.5002]
[1724962432686,40.99785453,141.01,140.93,33.5002]
[1724962433189,7.0922,141.0,140.93,33.5002]
[1724962434076,33.90595453,140.99,140.93,40.5954]
[1724962434391,40.99865453,140.99,140.94,7.0951]
[1724962437092,20.92050306,141.07,140.95,33.90595453]
[1724962437298,51.62795453,141.07,140.95,33.90595453]
[1724962437484,7.0897,141.05,141.0,7.0921]
[1724962437876,7.0893,141.06,141.01,7.0916]
[1724962438198,19.08850388,141.09,140.98,17.732]
[1724962438199,49.81345453,141.09,141.0,21.6716]
[1724962438397,265.0886,141.08,141.03,7.0904]
[1724962438698,7.0886,141.08,141.03,7.0904]
[1724962439289,15.1282,141.12,141.04,19.14210145]
[1724962439599,7.0868,141.11,141.06,7.089]
[1724962439898,7.0871,141.1,141.06,7.089]
[1724962440207,7.0871,141.1,141.05,7.0895]
[1724962442810,7.0857,141.13,141.07,15.1806]
[1724962443105,7.0855,141.14,141.09,7.0876]
[1724962443270,7.0842,141.16,141.11,7.0865]
[1724962443477,7.0842,141.16,141.12,7.086]
[1724962444582,7.0842,141.16,141.11,8.50191119]
[1724962444984,7.0837,141.17,141.12,7.0861]
[1724962445178,7.0829,141.19,141.14,7.0851]
[1724962445405,7.0829,141.19,141.13,7.0856]
[1724962445704,7.0829,141.19,141.14,7.0851]
[1724962446383,7.0816,141.22,141.16,7.084]
[1724962446708,7.0818,141.21,141.16,7.084]
[1724962447079,3.24902499,141.25,141.15,17.7115]
[1724962447080,7.0811,141.23,141.18,7.083]
[1724962451687,7.0811,141.23,141.17,7.0836]
[1724962453489,258.0,141.27,141.19,17.7056]
[1724962453707,7.0795,141.26,141.2,7.50498786]
[1724962453884,7.0795,141.26,141.21,0.42316343]
[1724962454207,258.0,141.27,141.21,0.8251454]
[1724962454598,258.0,141.27,141.21,8.306168]
[1724962456504,258.0,141.27,141.19,17.7056]
[1724962456999,7.0802,141.24,141.2,7.0821]
[1724962458010,42.31014398,141.28,141.19,17.7056]
[1724962458206,45.0,141.27,141.19,17.7056]
[1724962458389,7.0801,141.24,141.19,24.7877]
[1724962458589,6.5801,141.24,141.19,24.7877]
[1724962463597,7.0796,141.25,141.2,7.0819]
[1724962463926,7.0802,141.24,141.2,7.0819]
[1724962464410,7.0802,141.24,141.19,24.7881]
[1724962465006,7.0802,141.24,141.16,6.501]
[1724962465007,33.77993948,141.23,141.16,24.2106]
[1724962465211,33.77993948,141.21,141.13,33.3688]
[1724962466420,7.083,141.19,141.14,7.0851]
[1724962466989,7.0833,141.18,141.14,7.0851]
[1724962467208,33.77993948,141.21,141.13,33.3688]
[1724962467209,7.0837,141.17,141.13,33.3688]
[1724962468602,7.0832,141.18,141.13,33.3688]
[1724962468915,7.0822,141.2,141.16,7.0841]
[1724962469086,7.0817,141.21,141.16,7.0841]
[1724962469293,7.0812,141.22,141.17,7.0836]
[1724962469515,7.0812,141.22,141.18,7.083]
[1724962470010,39.2309,141.26,141.19,7.0825]
[1724962471293,7.0807,141.23,141.19,7.0825]
[1724962472298,33.77993948,141.27,141.2,7.0821]
[1724962472522,45.0,141.26,141.2,7.0821]
[1724962472923,7.0805,141.24,141.19,24.7884]
[1724962474612,7.0806,141.23,141.19,24.7884]
[1724962474798,7.0811,141.22,141.18,7.0831]
[1724962475823,7.0807,141.23,141.18,7.0831]
[1724962476120,7.0807,141.23,141.19,7.0825]
[1724962476325,33.77993948,141.25,141.2,7.082]